Department family,Entity,Date,Expense type,Expense area,Supplier,Transaction No,Amount,Description,Post Code
Departmen of Health,NHS Business Services Authority,05/08/2020,Rates Charges,Corporate Services,NEWCASTLE CITY COUNCIL,0050038189,"33,289.00",RATES AUG20,NE99 2PT
Departmen of Health,NHS Business Services Authority,14/08/2020,Apprenticeship Levy,Corporate Services,HM REVENUE & CUSTOMS 948PX00194660,0050038215,"40,355.00",948PX00194660/JUL2020,NE98 1ZZ
Departmen of Health,NHS Business Services Authority,14/08/2020,Statutory Payment,Statutory Payments,HM REVENUE & CUSTOMS 948PX00194660,0050038215,"1,842,950.92",948PX00194660/JUL2020,NE98 1ZZ
Departmen of Health,NHS Business Services Authority,25/08/2020,Temporary Staff,Prescription Pricing Division,MASTEK UK LTD,0080112033,"82,700.00",Common Components Development and,RG1 8BW
Departmen of Health,NHS Business Services Authority,04/08/2020,Rent,Corporate Services,SUFFOLK LIFE,0080113105,"160,000.00",RENT ADVANCE 24.06.20 - 28.09.20,IPL 1QJ
Departmen of Health,NHS Business Services Authority,21/08/2020,IT,Prescription Pricing Division,KCOM,0080113477,"36,526.50",45 Conference Call Units,HU1 3RE
Departmen of Health,NHS Business Services Authority,04/08/2020,Professional Fees,Prescription Pricing Division,AGILISYS LTD,0080113812,"105,560.31",PO complete,W6 9DL
Departmen of Health,NHS Business Services Authority,07/08/2020,Temporary Staff,Prescription Pricing Division,ALEXANDER MANN SOLUTIONS,0080113868,"36,189.25",PSR VARIOUS W/E 19.07.20,
Departmen of Health,NHS Business Services Authority,11/08/2020,Postage Charges,Prescription Pricing Division,ROYAL MAIL,0080113941,"25,385.70",A/C 0912819049,S49 1HQ
Departmen of Health,NHS Business Services Authority,04/08/2020,Professional Fees,Prescription Pricing Division,DIFRENT LTD,0080113950,"424,425.00",NHS Jobs 3 Beta Team 1 Phase 5,W1W 7LT
Departmen of Health,NHS Business Services Authority,28/08/2020,Professional Fees,Prescription Pricing Division,DIFRENT LTD,0080113951,"113,175.00",NHS Jobs 3 - Beta Phase 5 Team 2,W1W 7LT
Departmen of Health,NHS Business Services Authority,04/08/2020,Professional Fees,Prescription Pricing Division,CABINET OFFICE,0080113965,"645,600.97",Additional SMS,FY5 3TA
Departmen of Health,NHS Business Services Authority,14/08/2020,Public Info Distribution,Prescription Pricing Division,CABINET OFFICE,0080113966,"279,465.60",SMS - Faster Testing,FY5 3TA
Departmen of Health,NHS Business Services Authority,07/08/2020,Public Info Distribution,Prescription Pricing Division,CABINET OFFICE,0080113967,"80,979.36",COVID19 Response - Gov Notify Service -,FY5 3TA
Departmen of Health,NHS Business Services Authority,04/08/2020,Temporary Staff,Prescription Pricing Division,MASTEK UK LTD,0080113978,"23,750.00",SOW39 CCN02 Healthy Start,RG1 8BW
Departmen of Health,NHS Business Services Authority,04/08/2020,Statutory Payments,Statutory Payments,CABINET OFFICE CIVIL SERVICE PENSIONS,0080113980,"40,762.47",CONT JUL2020,RG24 9NW
Departmen of Health,NHS Business Services Authority,04/08/2020,Software Licences,Prescription Pricing Division,AGILISYS LTD,0080113996,"457,125.00",Licencing - 2020/21:,W6 9DL
Departmen of Health,NHS Business Services Authority,04/08/2020,Query,Business Solutions,AGILISYS LTD,0080114003,"115,135.49",NHS Cloud - Wintel,W6 9DL
Departmen of Health,NHS Business Services Authority,04/08/2020,Query,Business Solutions,AGILISYS LTD,0080114004,"28,934.00",Local Server Rooms - Wintel,W6 9DL
Departmen of Health,NHS Business Services Authority,04/08/2020,Query,Corporate Services,METHODS BUSINESS & DIGITAL TECH LTD,0080114005,"162,922.00",Provision of NHS Jobs website and,EC1A 4EN
Departmen of Health,NHS Business Services Authority,04/08/2020,Temporary Staff,Prescription Pricing Division,AGILISYS LTD,0080114008,"36,594.75",Statement of Work,W6 9DL
Departmen of Health,NHS Business Services Authority,07/08/2020,Temporary Staff,Prescription Pricing Division,MASTEK UK LTD,0080114015,"26,400.00",SOW36 CCN04 - Patient Services Dev Test,RG1 8BW
Departmen of Health,NHS Business Services Authority,18/08/2020,Query,Project Pacific,MASTEK UK LTD,0080114016,"49,050.00",SOW34 CCN01 - Loss Recovery Service -,RG1 8BW
Departmen of Health,NHS Business Services Authority,07/08/2020,Query,Statutory Payments,NHS PENSIONS,0080114032,"375,000.00",INCREASE EMP CONTRIBUTIONS AUGUST 2020,FY7 8LG
Departmen of Health,NHS Business Services Authority,07/08/2020,Temporary Staff,Prescription Pricing Division,ALEXANDER MANN SOLUTIONS,0080114037,"30,102.78",PSR VARIOUS W/E 26/07/20,
Departmen of Health,NHS Business Services Authority,07/08/2020,Temporary Staff,Prescription Pricing Division,MASTEK UK LTD,0080114038,"89,450.00",SOW35 CCN04 - OHS Delivery B99209,RG1 8BW
Departmen of Health,NHS Business Services Authority,07/08/2020,Temporary Staff,Corporate Services,RITTMAN MEAD CONSULTING LTD,0080114081,"29,670.00",Data Warehouse Improvements - SOW 3 -,BN3 3BQ
Departmen of Health,NHS Business Services Authority,07/08/2020,Software Licences,Prescription Pricing Division,TRUSTMARQUE SOLUTIONS,0080114125,"28,893.98",Purchase of extended support for W2008,YO32 9WN
Departmen of Health,NHS Business Services Authority,07/08/2020,Professional Fees,Prescription Pricing Division,TRUSTMARQUE SOLUTIONS,0080114126,"82,904.21",Part No. MNHS - Microsoft NHS Contact,YO32 9WN
Departmen of Health,NHS Business Services Authority,07/08/2020,Query,Supply Chain Management Division,IBM UK LTD,0080114159,"212,841.00",IBM ESR Enhance Support Charges FY20/21,PO6 3AF
Departmen of Health,NHS Business Services Authority,07/08/2020,Query,Supply Chain Management Division,IBM UK LTD,0080114161,"55,998.81",IBM ESR Vitality Charges FY20/21,PO6 3AF
Departmen of Health,NHS Business Services Authority,07/08/2020,Query,Pensions Division,MEDIGOLD HEALTH CONSULTANCY,0080114164,"38,187.24",Provision of Medical Services by,NN4 7BF
Departmen of Health,NHS Business Services Authority,07/08/2020,Query,Pensions Division,CLAYBROOK COMPUTING LTD,0080114174,"174,117.08",Monthly standard product support and,RH10 1UH
Departmen of Health,NHS Business Services Authority,14/08/2020,Temporary Staff,Pensions Division,CLAYBROOK COMPUTING LTD,0080114175,"87,980.00",Call off arrangement re Batch,RH10 1UH
Departmen of Health,NHS Business Services Authority,07/08/2020,Temporary Staff,Pensions Division,CLAYBROOK COMPUTING LTD,0080114176,"66,798.00",IB WORKFLOWS,RH10 1UH
Departmen of Health,NHS Business Services Authority,11/08/2020,Temporary Staff,Pensions Division,CLAYBROOK COMPUTING LTD,0080114192,"32,535.00",PACKAGE A AWARDS EFF PO29057 FC,RH10 1UH
Departmen of Health,NHS Business Services Authority,18/08/2020,Professional Fees,Business Solutions,NCC GROUP SECURITY SERVICES LIMITED,0080114231,"36,000.00",Statement of Work SoW O-126561 to comple,M3 3AQ
Departmen of Health,NHS Business Services Authority,11/08/2020,Printing Charges (External),Prescription Pricing Division,XEROX UK LIMITED,0080114233,"21,924.80",ZERO VATABLE,LS12 6NJ
Departmen of Health,NHS Business Services Authority,11/08/2020,Professional Fees,Corporate Services,BRIAN JOHNSTON & CO (INS. BROKERS) LTD,0080114249,"28,344.80",Motor Fleet Insurance Renewal - Policy,RH1 1BL
Departmen of Health,NHS Business Services Authority,21/08/2020,Bank Charges,Prescription Pricing Division,ALLPAY LIMITED,0080114260,"34,420.70",DIRECT DEBITS PPC1 01.07.20-31.07.20,HR1 3SE
Departmen of Health,NHS Business Services Authority,11/08/2020,Temporary Staff,Prescription Pricing Division,CAPITA BUSINESS SERVICES LTD,0080114273,"21,432.42",Eptica - Professional Services for the,DL1 9HN
Departmen of Health,NHS Business Services Authority,14/08/2020,Temporary Staff,Prescription Pricing Division,ALEXANDER MANN SOLUTIONS,0080114274,"25,823.11",PSR VARIOUS B15002 W/E 02.08.20,
Departmen of Health,NHS Business Services Authority,14/08/2020,Telphone Charges,Business Solutions,CAPITA BUSINESS SERVICES LTD,0080114311,"78,635.97",Call-off Note - Covid Increase Call,DL1 9HN
Departmen of Health,NHS Business Services Authority,14/08/2020,Query,Pensions Division,MEDIGOLD HEALTH CONSULTANCY,0080114313,"54,133.56",Provision of medical services for,NN4 7BF
Departmen of Health,NHS Business Services Authority,21/08/2020,Postage Charges,Prescription Pricing Division,ROYAL MAIL,0080114318,"29,620.72",A/C 0912819049,S49 1HQ
Departmen of Health,NHS Business Services Authority,25/08/2020,Professional Fees,Prescription Pricing Division,CAPITA BUSINESS SERVICES LTD,0080114366,"207,777.69",Wi-Fi Service - July 2020,DL1 9HN
Departmen of Health,NHS Business Services Authority,25/08/2020,Professional Fees,Prescription Pricing Division,CAPITA BUSINESS SERVICES LTD,0080114387,"126,249.29",Cyber Security - Senior Consultant,DL1 9HN
Departmen of Health,NHS Business Services Authority,25/08/2020,Professional Fees,Prescription Pricing Division,CAPITA BUSINESS SERVICES LTD,0080114388,"102,251.83",MSI & Standard Services - Datacentre - J,DL1 9HN
Departmen of Health,NHS Business Services Authority,21/08/2020,Sun System Maintenance,Prescription Pricing Division,ORACLE CORPORATION UK LTD,0080114480,"101,635.20",Oracle Universal Credits to support the,RG6 1RA
Departmen of Health,NHS Business Services Authority,28/08/2020,Professional Fees,Project Pacific,TISSKI LIMITED,0080114545,"38,093.75",SOW11 Provider Assurance Support,CV8 2LG
Departmen of Health,NHS Business Services Authority,28/08/2020,Professional Fees,Pensions Levy,ACUITY BUSINESS SOLUTIONS LTD,0080114619,"54,216.00","Consultancy for Pensions Flexibilities,",EX2 8LB
Departmen of Health,NHS Business Services Authority,01/08/2020,Pensions Division,Pensions Division,,,"1,311,992.53",Payments to Pensioners,
Departmen of Health,NHS Business Services Authority,01/08/2020,Dental Contractors,Dental Contractors,,,"244,303,919.00",Payments to Dental Contractors,
Departmen of Health,NHS Business Services Authority,05/08/2020,Pharmacy Contractors,Prescription Pricing ,,," 1,102,133.52 ",Payments to Pharmacy Contractors,
Departmen of Health,NHS Business Services Authority,03/08/2020,Pharmacy Contractors,Prescription Pricing ,,," 561,498.80 ",Payments to Pharmacy Contractors,
Departmen of Health,NHS Business Services Authority,07/08/2020,Pharmacy Contractors,Prescription Pricing ,,," 310,208.11 ",Payments to Pharmacy Contractors,
Departmen of Health,NHS Business Services Authority,14/08/2020,Pharmacy Contractors,Prescription Pricing ,,," 25,536.21 ",Payments to Pharmacy Contractors,
Departmen of Health,NHS Business Services Authority,05/08/2020,Pharmacy Contractors,Prescription Pricing ,,," 25,250.00 ",Payments to Pharmacy Contractors,
Departmen of Health,NHS Business Services Authority,13/08/2020,Pharmacy Contractors,Prescription Pricing ,,," 5,400.00 ",Payments to Pharmacy Contractors,
Departmen of Health,NHS Business Services Authority,25/08/2020,Pharmacy Contractors,Prescription Pricing ,,, 300.00 ,Payments to Pharmacy Contractors,
Departmen of Health,NHS Business Services Authority,28/08/2020,Pharmacy Contractors,Prescription Pricing ,,," 7,577,746.21 ",Payments to Pharmacy Contractors,
